[Event "III Menorca Open-A 2024"]
[Site "Ciutadella Menorca"]
[Date "2024.04.04"]
[Round "5.20"]
[White "Raja Rithvik R"]
[Black "De Winter, Arthur"]
[Result "1-0"]
[ECO "D27"]
[WhiteElo "2532"]
[BlackElo "2413"]
[Annotator "TA"]
[PlyCount "123"]
[EventDate "2024.04.02"]
[EventType "swiss"]
[EventCountry "ESP"]
[SourceTitle "playchess.com"]
[Source "ChessBase"]
[SourceQuality "1"]
[TimeControl "5400+30"]

{[%evp 26,123,40,39,53,71,70,66,57,61,72,58,61,57,62,56,55,48,53,47,47,47,47,47,44,49,77,73,75,71,71,60,66,75,97,103,98,93,94,93,112,104,109,110,111,114,110,110,151,149,146,135,129,102,136,141,139,129,185,0,145,114,125,64,99,66,79,83,129,89,112,95,101,93,147,147,271,263,270,256,256,256,671,664,664,664,664,664,664,664,656,656,656,656,649,642,1347,627,479,391]} 1. d4 {[%emt 0:00:04]} d5 {[%emt 0:00:04]} 2. c4 {[%emt 0:00:08]} dxc4 {[%emt 0:00:04]} 3. Nf3 {[%emt 0:00:08]} Nf6 {[%emt 0:00:05]} 4. e3 {[%emt 0:00:03]} e6 {[%emt 0:00:03]} 5. Bxc4 {[%emt 0:00:06]} c5 {[%emt 0:00:03]} 6. O-O {[%emt 0:00:07]} a6 {[%emt 0:00:04]} 7. Nbd2 {[%emt 0:00:07]} cxd4 {[%emt 0:00:13] The main line 7...cxd4 scores better than 7...Nc6. D27: Queen's Gambit Accepted: Classical main line: 7 e4!? and 7 a4.} 8. Nxd4 {[%emt 0:00:05]} Bc5 {[%emt 0:00:10]} 9. Bd3 {[%emt 0:00:04]} O-O {[%emt 0:08:31]} 10. Ne4 {[%emt 0:01:26]} Nxe4 {[%emt 0:02:52]} 11. Bxe4 {[%emt 0:00:05]} Nd7 $146 {[%emt 0:00:22]} ({Predecessor:} 11... Qe7 12. Qc2 f5 13. Bd3 Bxd4 14. exd4 Nc6 15. Bf4 Nxd4 16. Qc3 Nc6 17. Bc4 Qf6 {0-1 Bharath,S (2504)-Tiglon,B (2485) Sitges Sunway op 10th 2023 (7)}) 12. Nb3 {[%emt 0:09:24]} Be7 {[%emt 0:07:50]} 13. Bd2 {[%emt 0:03:18]} Nf6 {[%emt 0:02:57]} 14. Bf3 {[%emt 0:00:36]} Rb8 {[%emt 0:13:54]} 15. Bc3 {[%emt 0:03:55]} Bd6 {[%emt 0:02:33]} 16. Qd2 {[%emt 0:13:08]} Nd5 {[%emt 0:11:42]} 17. Bxd5 {[%emt 0:04:57]} exd5 {[%emt 0:00:05]} 18. Bb4 {[%emt 0:00:02]} (18. Qd4 {seems wilder.} Qg5 19. f4 Qh6 20. Rf3) 18... Be6 {[%emt 0:01:56]} 19. Rac1 {[%emt 0:03:34]} Re8 {[%emt 0:01:02]} 20. Bxd6 {[%emt 0:00:07]} Qxd6 {[%emt 0:00:04]} 21. Rc3 {[%emt 0:02:42]} b6 {[%emt 0:03:50]} 22. Rfc1 {[%emt 0:02:48]} Rbc8 {[%emt 0:01:21]} 23. h3 {[%emt 0:01:48]} h6 {[%emt 0:01:02]} 24. Qd3 {[%emt 0:08:04]} a5 {[%emt 0:01:23]} 25. Nd4 {[%emt 0:09:36]} Bd7 {[%emt 0:02:29]} 26. Ne2 {[%emt 0:04:24]} Rxc3 {[%emt 0:05:57]} 27. Nxc3 {[%emt 0:01:12]} (27. Qxc3 Rc8 28. Qd2 Rxc1+ 29. Qxc1 b5 $11) 27... Be6 {[%emt 0:07:33]} 28. Rd1 {[%emt 0:05:23]} Qb4 {[%emt 0:05:28]} 29. Qe2 {[%emt 0:06:06]} (29. Nxd5 Bxd5 30. Qxd5 Qxb2 $11) 29... Qc5 {[%emt 0:07:40]} 30. Rd4 {[%emt 0:00:49]} Rc8 {[%emt 0:01:22]} 31. a3 {[%emt 0:04:42]} Kf8 {[%emt 0:06:06]} 32. Qd2 {[%emt 0:08:07]} Qc7 {[%emt 0:03:16]} 33. f4 {[%emt 0:04:28]} (33. Nxd5 Qc1+ 34. Kh2 Qxd2 35. Rxd2 Rd8 $17) 33... Qc6 {[%emt 0:02:36]} 34. Kh2 {[%emt 0:01:01]} ({Don't do} 34. Nxd5 Qc1+ 35. Qxc1 Rxc1+ 36. Kh2 Rb1 $14) 34... Kg8 {[%emt 0:02:01]} 35. Nxd5 {[%emt 0:01:22]} Bxd5 {[%emt 0:00:03]} 36. Rxd5 {[%emt 0:00:04]} Kh7 {[%emt 0:00:22]} 37. Qd3+ {[%emt 0:01:20]} Kg8 {[%emt 0:00:56]} 38. Rd6 {[%emt 0:01:01]} Qc5 {[%emt 0:00:39]} 39. Rd7 {[%emt 0:00:41]} Qc6 {[%emt 0:00:36]} 40. Qd4 {[%emt 0:01:11]} Qc5 {[%emt 0:00:43]} 41. Qe4 {[%emt 0:00:43]} Qb5 {[%emt 0:00:28]} (41... Rf8 $16 {might work better.} 42. Rd5 Qc7) 42. Qd4 {[%emt 0:01:55]} Qc5 $1 {[%emt 0:00:04]} 43. Qxc5 {[%emt 0:00:35]} Rxc5 {[%emt 0:00:08]} 44. Rd2 {[%emt 0:00:05]} (44. Rd8+ $16 Kh7 45. Rd3) 44... Kf8 {[%emt 0:00:30]} 45. g4 {[%emt 0:00:45]} Ke7 {[%emt 0:00:33]} 46. Kg3 {[%emt 0:00:17]} Ke6 {[%emt 0:01:16]} (46... Rb5 $142) 47. Kf3 {[%emt 0:00:14]} g6 {[%emt 0:00:27]} 48. Rd4 {[%emt 0:01:08]} Rc2 {[%emt 0:00:30]} 49. b4 {[%emt 0:00:01]} Ra2 {[%emt 0:00:22]} (49... Rh2 $142) 50. bxa5 $16 {[%emt 0:01:34]} Rxa3 {[%emt 0:00:04]} (50... bxa5 $16 51. Re4+ Kf6) 51. axb6 $18 {[%emt 0:00:00]} Rb3 {[%emt 0:00:02] [#]} 52. Rd8 $1 {[%emt 0:00:00]} Rxb6 {[%emt 0:00:20]} 53. Rh8 {[%emt 0:00:00]} Kf6 $2 {[%emt 0:00:34]} (53... h5 54. gxh5 Rb5 55. hxg6 fxg6) 54. Rxh6 $18 {[%emt 0:00:00]} Kg7 {[%emt 0:00:10]} 55. g5 {[%emt 0:00:00]} Rb2 {[%emt 0:00:37]} 56. h4 {[%emt 0:01:06]} Rh2 {[%emt 0:00:12]} 57. e4 {[%emt 0:00:17]} Rh1 {[%emt 0:00:45]} 58. e5 {[%emt 0:01:29]} Rf1+ {[%emt 0:00:38]} 59. Kg3 {[%emt 0:00:11]} Rg1+ {[%emt 0:00:08] [#]} 60. Kf2 $1 {[%emt 0:00:09]} Rh1 {[%emt 0:00:04]} 61. Kg2 {[%emt 0:00:03]} (61. h5 $142 Rh2+ 62. Kf3 Rh3+ 63. Ke4 (63. Kg4 Rd3 $18)) 61... Rd1 {[%emt 0:01:17]} 62. h5 {[%emt 0:00:05]} 1-0

[Event "III Menorca Open-A 2024"]
[Site "Ciutadella Menorca"]
[Date "2024.04.04"]
[Round "5.21"]
[White "Vogel, Roven"]
[Black "Oro, Faustino"]
[Result "1-0"]
[ECO "E43"]
[WhiteElo "2528"]
[BlackElo "2330"]
[Annotator "TA"]
[PlyCount "61"]
[EventDate "2024.04.02"]
[EventType "swiss"]
[EventCountry "ESP"]
[SourceTitle "playchess.com"]
[Source "ChessBase"]
[SourceQuality "1"]
[TimeControl "5400+30"]

{[%evp 16,61,7,2,6,-13,41,31,42,21,39,32,48,34,42,33,45,9,66,64,59,37,119,76,197,202,185,190,268,264,255,248,329,314,330,324,319,287,317,293,291,255,229,204,502,489,469,472]} 1. d4 {[%emt 0:00:04]} e6 {[%emt 0:00:08]} 2. c4 {[%emt 0:00:08]} b6 {[%emt 0:00:05]} 3. Nc3 {[%emt 0:01:59]} Bb4 {[%emt 0:00:16]} 4. Bd2 {[%emt 0:00:21]} Nf6 {[%emt 0:02:21]} 5. Nf3 {[%emt 0:00:35]} Bb7 {[%emt 0:00:31]} 6. e3 {[%emt 0:00:51]} O-O {[%emt 0:01:12]} 7. Bd3 {[%emt 0:00:27]} c5 {[%emt 0:13:40]} 8. a3 {[%emt 0:01:12]} Bxc3 {[%emt 0:00:43]} 9. Bxc3 {[%emt 0:00:21]} cxd4 {[%emt 0:05:14]} 10. Nxd4 {[%emt 0:01:11]} Nc6 {[%emt 0:05:43]} (10... d5 $11) 11. Nxc6 $14 {[%emt 0:06:20]} Bxc6 {[%emt 0:00:24] White is slightly better.} 12. e4 {[%emt 0:05:46]} d6 {[%emt 0:04:53]} (12... Bxe4 $2 13. Bxf6 Qxf6 14. Bxe4 $18) (12... Nxe4 $2 13. Bxe4 Bxe4 14. Qd4 $18) 13. O-O {[%emt 0:01:34]} e5 {[%emt 0:00:59]} (13... Nxe4 $2 {is the wrong capture.} 14. Bxe4 Bxe4 15. Qd4 $18) 14. Qe2 {[%emt 0:00:57]} Qe7 {[%emt 0:02:50]} 15. b4 {[%emt 0:03:25][%cal Bb2b4,Bb4b5][%mdl 32]} Rac8 {[%emt 0:01:15]} 16. a4 {[%emt 0:07:46]} Qb7 {[%emt 0:12:43]} (16... a5 $11) 17. f3 {[%emt 0:01:30]} a5 {[%emt 0:01:28]} 18. c5 {[%emt 0:11:00] aiming for b5.} bxc5 {[%emt 0:14:45]} ({Black should try} 18... axb4 $14 19. Ba6 Qd7 20. Bxc8 (20. Bxb4 dxc5 21. Rfd1 Qe8 $16) 20... Rxc8 21. Bxb4 bxc5) 19. b5 {[%emt 0:04:53]} Bd7 {[%emt 0:00:40] [#] This move loses the game for Black.} (19... Qb6 $16) 20. Bc4 $1 $18 {[%emt 0:00:10][%mdl 1024] White has strong compensation.} ({Inferior is} 20. Bxa5 c4 21. Bxc4 Qa7+ 22. Kh1 Qxa5 $17) 20... Qb6 {[%emt 0:03:22]} 21. Qd2 $36 {[%emt 0:01:36][%mdl 2048] White has strong initiative.} Ra8 {[%emt 0:00:06] [#]} (21... Be6 {was worth a try.}) 22. Rad1 $1 {[%emt 0:00:06]} Ne8 {[%emt 0:00:31]} 23. f4 {[%emt 0:01:44]} Be6 {[%emt 0:03:16]} 24. Bxe6 {[%emt 0:01:11]} fxe6 {[%emt 0:00:06]} 25. fxe5 {[%emt 0:00:04]} Rxf1+ {[%emt 0:00:22]} 26. Rxf1 {[%emt 0:00:58]} dxe5 {[%emt 0:00:12]} 27. Bxe5 {[%emt 0:01:12]} c4+ {[%emt 0:00:25]} 28. Bd4 {[%emt 0:01:30]} Qd8 {[%emt 0:00:52]} 29. Qf2 {[%emt 0:04:20][%csl Gf1][%cal Rf2f8]} Nd6 $2 {[%emt 0:00:25] Black is weak on the dark squares} (29... Nf6 {might work better.} 30. e5 (30. Bxf6 gxf6 31. Qg3+ Kf7 $16) 30... Ne4) 30. Be5 {[%emt 0:01:28]} Qe7 {[%emt 0:01:06]} 31. Qc5 {[%emt 0:01:29] Weighted Error Value: White=0.12 (very precise) /Black=0.50.  Mistake:       	---       	Black=6      Inaccurate:     	White=2     	Black=1      OK:         	White=8     	Black=4      Best:        	White=2     	---        Strong:       	White=1     	---} 1-0

[Event "III Menorca Open-A 2024"]
[Site "Ciutadella Menorca"]
[Date "2024.04.04"]
[Round "5.22"]
[White "Cramling Bellon, Anna"]
[Black "Mohamed Anees M"]
[Result "1/2-1/2"]
[ECO "D31"]
[WhiteElo "2115"]
[BlackElo "2253"]
[Annotator "RC"]
[PlyCount "77"]
[EventDate "2024.04.02"]
[EventType "swiss"]
[EventCountry "ESP"]
[SourceTitle "playchess.com"]
[Source "ChessBase"]
[SourceQuality "1"]
[TimeControl "5400+30"]

1. d4 {[%emt 0:00:04]} d5 {[%emt 0:00:09]} 2. c4 {[%emt 0:00:10]} e6 {[%emt 0:00:06]} 3. Nc3 {[%emt 0:00:40]} a6 {[%emt 0:00:06]} 4. c5 {[%emt 0:06:24]} b6 {[%emt 0:00:39]} 5. cxb6 {[%emt 0:00:38]} cxb6 {[%emt 0:00:18]} 6. Bf4 {[%emt 0:01:19]} Bb7 {[%emt 0:02:46]} 7. e3 {[%emt 0:01:27]} Nf6 {[%emt 0:02:24]} 8. Bd3 {[%emt 0:04:56]} Bd6 {[%emt 0:00:51]} 9. Nge2 {[%emt 1:19:22]} O-O {[%emt 0:00:27]} 10. O-O {[%emt 0:00:00]} b5 {[%emt 0:02:42]} 11. Rc1 {[%emt 0:00:00]} Qe7 {[%emt 0:04:33]} 12. Bb1 {[%emt 0:00:00]} Nbd7 {[%emt 0:03:52]} 13. Ng3 {[%emt 0:00:00]} Bxf4 {[%emt 0:05:16]} 14. exf4 {[%emt 0:00:00]} g6 {[%emt 0:00:07]} 15. Re1 {[%emt 0:00:00]} Qd6 {[%emt 0:00:42]} 16. Qd2 {[%emt 0:00:00]} Rfe8 {[%emt 0:02:06]} 17. h4 {[%emt 0:00:00]} Nb6 {[%emt 0:09:36]} 18. f5 {[%emt 0:00:00]} exf5 {[%emt 0:02:55]} 19. Qg5 {[%emt 0:00:00]} Kh8 {[%emt 0:06:48]} 20. Bxf5 {[%emt 0:00:00]} b4 {[%emt 0:01:48]} 21. Nb1 {[%emt 0:00:00]} Ne4 {[%emt 0:03:37]} 22. Bxe4 {[%emt 0:00:00]} dxe4 {[%emt 0:00:07]} 23. Nd2 {[%emt 0:00:00]} Qxd4 {[%emt 0:14:58]} 24. Ndxe4 {[%emt 0:00:00]} Bxe4 {[%emt 0:10:46]} 25. Nxe4 {[%emt 0:00:00]} Re6 {[%emt 0:02:12]} 26. Nc5 {[%emt 0:00:00]} Rxe1+ {[%emt 0:01:35]} 27. Rxe1 {[%emt 0:00:00]} Kg8 {[%emt 0:07:12]} 28. h5 {[%emt 0:00:00]} Qxb2 {[%emt 0:05:24]} 29. Ne4 {[%emt 0:00:13]} Qd4 {[%emt 0:04:11]} 30. Nf6+ {[%emt 0:02:23]} Kg7 {[%emt 0:00:23]} 31. Ne8+ {[%emt 0:02:48]} Kg8 {[%emt 0:01:23]} 32. Nf6+ {[%emt 0:02:48]} Kg7 {[%emt 0:00:21]} 33. Ne8+ {[%emt 0:00:16]} Kg8 {[%emt 0:01:16]} 34. Nf6+ {[%emt 0:00:22]} Kg7 {[%emt 0:05:54]} 35. h6+ Kh8 {[%emt 0:00:30]} 36. g3 {[%emt 0:04:40]} Rf8 {[%emt 0:00:30]} 37. Re5 {[%emt 0:00:30]} Nc4 {[%emt 0:00:30]} 38. Nd7 {[%emt 0:00:30]} Nb6 {[%emt 0:00:30]} 39. Nf6 1/2-1/2

[Event "III Menorca Open-A 2024"]
[Site "Ciutadella Menorca"]
[Date "2024.04.05"]
[Round "6.1"]
[White "Aryan Chopra"]
[Black "Nihal Sarin"]
[Result "1-0"]
[ECO "B90"]
[WhiteElo "2630"]
[BlackElo "2698"]
[Annotator "ChessBase"]
[PlyCount "271"]
[EventDate "2024.04.02"]
[EventType "swiss"]
[EventCountry "ESP"]
[SourceTitle "playchess.com"]
[Source "ChessBase"]
[SourceQuality "1"]
[TimeControl "5400+30"]

1. e4 {[%emt 0:00:04]} c5 {[%emt 0:02:13]} 2. Nf3 {[%emt 0:00:06]} d6 {[%emt 0:00:04]} 3. d4 {[%emt 0:00:05]} cxd4 {[%emt 0:00:04]} 4. Nxd4 {[%emt 0:00:04]} Nf6 {[%emt 0:00:08]} 5. Nc3 {[%emt 0:00:04]} a6 {[%emt 0:00:04]} 6. Be3 {[%emt 0:00:07]} e5 {[%emt 0:00:09]} 7. Nb3 {[%emt 0:00:07]} Be7 {[%emt 0:00:08]} 8. f3 {[%emt 0:00:43]} h5 {[%emt 0:00:36]} 9. Qd2 {[%emt 0:01:21]} Nbd7 {[%emt 0:00:28]} 10. Be2 {[%emt 0:10:52]} Nb6 {[%emt 0:03:58]} 11. O-O-O {[%emt 0:11:54]} Be6 {[%emt 0:10:52]} 12. h3 {[%emt 0:16:07]} h4 {[%emt 1:17:46]} 13. f4 {[%emt 0:03:01]} Qc7 {[%emt 0:00:00]} 14. Kb1 {[%emt 0:03:02]} O-O-O {[%emt 0:00:00]} 15. Bxb6 {[%emt 0:06:04]} Qxb6 {[%emt 0:00:00]} 16. f5 {[%emt 0:00:05]} Bd7 {[%emt 0:00:00]} 17. Bc4 {[%emt 0:00:54]} Bc6 {[%emt 0:00:00]} 18. Rhe1 {[%emt 0:08:38]} Rhf8 {[%emt 0:00:00]} 19. Nd5 {[%emt 0:01:19]} Bxd5 {[%emt 0:00:00]} 20. Bxd5 {[%emt 0:00:04]} Kb8 {[%emt 0:00:00]} 21. Na5 {[%emt 0:09:33]} Rd7 {[%emt 0:00:00]} 22. Nc4 {[%emt 0:06:07]} Qc5 {[%emt 0:00:00]} 23. Ne3 {[%emt 0:00:03]} Nh5 {[%emt 0:00:00]} 24. Qe2 {[%emt 0:04:39]} Nf4 {[%emt 0:00:00]} 25. Qg4 {[%emt 0:00:05]} Bf6 {[%emt 0:00:00]} 26. Bb3 {[%emt 0:00:13]} Rfd8 {[%emt 0:03:59]} 27. Nd5 {[%emt 0:00:35]} Ka7 {[%emt 0:01:18]} 28. Rd2 {[%emt 0:01:07]} Nxd5 {[%emt 0:00:16]} 29. Bxd5 {[%emt 0:01:25]} Rc7 {[%emt 0:00:06]} 30. c3 {[%emt 0:07:44]} Qb6 {[%emt 0:00:26]} 31. Ka1 {[%emt 0:00:27]} Rdd7 {[%emt 0:00:16]} 32. Qd1 {[%emt 0:01:24]} Kb8 {[%emt 0:00:18]} 33. a3 {[%emt 0:01:51]} Rc8 {[%emt 0:00:44]} 34. Ka2 {[%emt 0:00:16]} Rh8 {[%emt 0:00:23]} 35. Qa4 {[%emt 0:01:11]} Rc7 {[%emt 0:01:55]} 36. Ree2 {[%emt 0:02:12]} Ka7 {[%emt 0:01:05]} 37. Rd3 {[%emt 0:00:16]} Rhc8 {[%emt 0:00:18]} 38. Qd1 {[%emt 0:00:41]} Bg5 {[%emt 0:00:22]} 39. Bb3 {[%emt 0:00:24]} Rd8 {[%emt 0:00:11]} 40. a4 {[%emt 0:00:36]} Rdd7 {[%emt 0:00:26]} 41. Rc2 {[%emt 0:01:35]} Rc5 {[%emt 0:00:56]} 42. Qh5 {[%emt 0:00:48]} Bf6 {[%emt 0:00:13]} 43. Rcd2 {[%emt 0:00:13]} Qc6 {[%emt 0:00:16]} 44. Rd5 {[%emt 0:01:08]} Rxd5 {[%emt 0:00:19]} 45. Rxd5 {[%emt 0:00:04]} Qb6 {[%emt 0:00:38]} 46. Qe2 {[%emt 0:00:51]} Kb8 {[%emt 0:00:20]} 47. a5 {[%emt 0:00:18]} Qc6 {[%emt 0:00:32]} 48. Ka3 {[%emt 0:02:08]} Rd8 {[%emt 0:00:39]} 49. Qd3 {[%emt 0:00:24]} Rc8 {[%emt 0:00:38]} 50. Ka2 {[%emt 0:00:21]} Rd8 {[%emt 0:00:09]} 51. Bd1 {[%emt 0:00:30]} Rd7 {[%emt 0:00:17]} 52. Kb1 {[%emt 0:00:22]} Kc8 {[%emt 0:00:41]} 53. Bb3 {[%emt 0:00:05]} Kb8 {[%emt 0:00:30]} 54. Qd1 {[%emt 0:00:54]} Rd8 {[%emt 0:00:15]} 55. Kc2 {[%emt 0:01:10]} Kc8 {[%emt 0:01:29]} 56. Qa1 {[%emt 0:00:14]} Qc7 {[%emt 0:00:12]} 57. Qa3 {[%emt 0:00:51]} Kd7 {[%emt 0:00:25]} 58. Qb4 {[%emt 0:00:59]} Ke7 {[%emt 0:00:30]} 59. Rd1 {[%emt 0:00:30]} Kf8 {[%emt 0:01:21]} 60. Bd5 {[%emt 0:00:33]} Rb8 {[%emt 0:00:19]} 61. Ra1 {[%emt 0:00:39]} Bd8 {[%emt 0:00:33]} 62. Qc4 {[%emt 0:00:31]} Qxc4 {[%emt 0:01:03]} 63. Bxc4 {[%emt 0:00:01]} Ke7 {[%emt 0:00:08]} 64. Bd5 {[%emt 0:00:52]} Kf6 {[%emt 0:00:48]} 65. Kd3 {[%emt 0:00:37]} Kg5 {[%emt 0:00:15]} 66. Bxf7 {[%emt 0:00:35]} Kf4 {[%emt 0:00:08]} 67. b4 {[%emt 0:00:07]} Kg3 {[%emt 0:00:47]} 68. Ra2 {[%emt 0:00:04]} b6 {[%emt 0:00:34]} 69. axb6 {[%emt 0:01:07]} Bxb6 {[%emt 0:00:01]} 70. Rxa6 {[%emt 0:00:45]} Kxg2 {[%emt 0:00:32]} 71. Be6 {[%emt 0:00:05]} d5 {[%emt 0:00:20]} 72. c4 {[%emt 0:00:44]} dxc4+ {[%emt 0:00:44]} 73. Kxc4 {[%emt 0:00:05]} Kf3 {[%emt 0:00:24]} 74. f6 {[%emt 0:00:42]} gxf6 {[%emt 0:00:05]} 75. Bf5 {[%emt 0:00:04]} Rb7 {[%emt 0:00:43]} 76. b5 {[%emt 0:00:18]} Rc7+ {[%emt 0:01:34]} 77. Kd5 {[%emt 0:00:03]} Bd4 {[%emt 0:00:35]} 78. b6 {[%emt 0:00:44]} Rc5+ {[%emt 0:00:09]} 79. Kd6 {[%emt 0:00:01]} Rb5 {[%emt 0:00:16]} 80. Kc7 {[%emt 0:00:07]} Rc5+ {[%emt 0:00:14]} 81. Kb8 {[%emt 0:00:16]} Rc6 {[%emt 0:00:10]} 82. Kb7 {[%emt 0:00:10]} Rd6 {[%emt 0:01:13]} 83. Ra3+ {[%emt 0:00:15]} Kf4 {[%emt 0:00:16]} 84. Rb3 {[%emt 0:00:04]} Bc5 {[%emt 0:00:38]} 85. Rb5 {[%emt 0:00:09]} Ba3 {[%emt 0:00:51]} 86. Kc8 {[%emt 0:00:56]} Rd4 {[%emt 0:00:34]} 87. b7 {[%emt 0:00:07]} Bd6 {[%emt 0:00:02]} 88. Rc5 {[%emt 0:02:58]} Bxc5 {[%emt 0:01:03]} 89. b8=Q {[%emt 0:02:26]} Bb4 {[%emt 0:00:26]} 90. Qb6 {[%emt 0:00:00]} Be1 {[%emt 0:00:08]} 91. Qxf6 {[%emt 0:00:00]} Bg3 {[%emt 0:00:01]} 92. Bg4+ {[%emt 0:00:00]} Ke3 {[%emt 0:00:02]} 93. Qf3+ {[%emt 0:00:00]} Kd2 {[%emt 0:00:06]} 94. Qe2+ {[%emt 0:00:06]} Kc3 {[%emt 0:00:06]} 95. Be6 {[%emt 0:00:26]} Rd3 {[%emt 0:00:29]} 96. Bd5 {[%emt 0:00:07]} Rd4 {[%emt 0:00:19]} 97. Kc7 {[%emt 0:00:15]} Rd3 {[%emt 0:00:19]} 98. Kd6 {[%emt 0:01:01]} Kd4 {[%emt 0:00:05]} 99. Bb7 {[%emt 0:01:14]} Kc3+ {[%emt 0:00:40]} 100. Kc5 {[%emt 0:00:16]} Rd2 {[%emt 0:00:06]} 101. Qc4+ {[%emt 0:01:02]} Kb2 {[%emt 0:00:01]} 102. Kb5 {[%emt 0:00:05]} Rd4 {[%emt 0:01:14]} 103. Qe2+ {[%emt 0:00:15]} Kc3 {[%emt 0:00:07]} 104. Bd5 {[%emt 0:00:15]} Rb4+ {[%emt 0:00:56]} 105. Kc5 {[%emt 0:00:09]} Rd4 {[%emt 0:00:05]} 106. Qa2 {[%emt 0:01:18]} Kd3 {[%emt 0:00:25]} 107. Qb3+ {[%emt 0:01:04]} Ke2 {[%emt 0:00:24]} 108. Qc3 {[%emt 0:00:33]} Kf2 {[%emt 0:01:22]} 109. Kd6 {[%emt 0:00:34]} Kg2 {[%emt 0:00:50]} 110. Qc8 {[%emt 0:00:24]} Kf3 {[%emt 0:00:06]} 111. Ke6 {[%emt 0:00:16]} Kg2 {[%emt 0:01:00]} 112. Kf6 {[%emt 0:00:13]} Rd2 {[%emt 0:00:08]} 113. Kg5 {[%emt 0:00:37]} Rf2 {[%emt 0:00:10]} 114. Be6 {[%emt 0:00:25]} Kh2 {[%emt 0:00:27]} 115. Qc3 {[%emt 0:00:13]} Kg2 {[%emt 0:00:33]} 116. Bg4 {[%emt 0:00:04]} Rf1 {[%emt 0:00:48]} 117. Qc2+ {[%emt 0:01:39]} Kg1 {[%emt 0:00:40]} 118. Be2 {[%emt 0:00:28]} Rf2 {[%emt 0:00:43]} 119. Qd1+ {[%emt 0:01:01]} Kg2 {[%emt 0:00:05]} 120. Kh5 {[%emt 0:00:27]} Rf4 {[%emt 0:00:26]} 121. Qa1 {[%emt 0:00:54]} Rf2 {[%emt 0:00:32]} 122. Bc4 {[%emt 0:00:20]} Kh2 {[%emt 0:00:34]} 123. Kg4 {[%emt 0:00:37]} Rf4+ {[%emt 0:00:09]} 124. Kg5 {[%emt 0:00:04]} Rf2 {[%emt 0:00:06]} 125. Bf1 {[%emt 0:00:46]} Kg1 {[%emt 0:00:10]} 126. Be2+ {[%emt 0:00:36]} Kg2 {[%emt 0:00:31]} 127. Qd1 {[%emt 0:00:06]} Rf4 {[%emt 0:00:37]} 128. Kh5 {[%emt 0:00:23]} Rf6 {[%emt 0:01:04]} 129. Bg4 {[%emt 0:00:21]} Rf4 {[%emt 0:02:18]} 130. Qe2+ {[%emt 0:00:25]} Rf2 {[%emt 0:00:21]} 131. Bf3+ {[%emt 0:00:16]} Kg1 {[%emt 0:01:03]} 132. Qe1+ {[%emt 0:00:18]} Rf1 {[%emt 0:00:05]} 133. Qe3+ {[%emt 0:00:07]} Bf2 {[%emt 0:01:24]} 134. Qd2 {[%emt 0:00:45]} Kh2 {[%emt 0:00:52]} 135. Qe2 {[%emt 0:00:48]} Kg1 {[%emt 0:00:05]} 136. Qb2 {[%emt 0:00:03]} 1-0

[Event "III Menorca Open-A 2024"]
[Site "Ciutadella Menorca"]
[Date "2024.04.05"]
[Round "6.2"]
[White "Dardha, Daniel"]
[Black "Alekseenko, Kirill"]
[Result "1-0"]
[ECO "D27"]
[WhiteElo "2628"]
[BlackElo "2650"]
[Annotator "TA"]
[PlyCount "53"]
[EventDate "2024.04.02"]
[EventType "swiss"]
[EventCountry "ESP"]
[SourceTitle "playchess.com"]
[Source "ChessBase"]
[SourceQuality "1"]
[TimeControl "5400+30"]

{[%evp 19,53,8,19,6,6,7,121,112,194,195,264,273,250,268,322,167,200,191,195,196,186,181,180,185,200,209,194,202,202,202,592,579,1045,1045,1045,1045]} 1. d4 {[%emt 1:31:00]} Nf6 {[%emt 0:01:06]} 2. c4 {[%emt 0:00:00]} e6 {[%emt 0:00:24]} 3. Nf3 {[%emt 0:00:00]} d5 {[%emt 0:00:28]} 4. Nc3 {[%emt 0:00:00]} dxc4 {[%emt 0:00:25]} 5. e3 {[%emt 0:00:00]} a6 {[%emt 0:00:35]} 6. a4 {[%emt 0:00:00]} b6 {[%emt 0:00:31]} 7. Bxc4 {[%emt 0:00:00]} Bb7 {[%emt 0:01:10]} 8. O-O {[%emt 0:00:00]} c5 {[%emt 0:04:28]} 9. Qe2 {[%emt 0:00:00]} Qc7 {[%emt 0:00:16]} 10. Rd1 {[%emt 0:00:00]} Nbd7 {[%emt 0:01:30]} 11. d5 {[%emt 0:00:00]} exd5 {[%emt 0:03:43]} (11... Nxd5 {simplifies} 12. Nxd5 exd5 13. Bxd5 Bxd5 14. Rxd5 Be7) 12. Nxd5 {[%emt 0:00:00]} (12. Bxd5 {simplifies} Nxd5 13. Nxd5 Bxd5 14. Rxd5 Be7 15. b3) 12... Nxd5 {[%emt 0:01:09]} (12... Bxd5 $11 {keeps the balance.} 13. Bxd5 Nxd5 14. Rxd5 Be7) 13. e4 $1 $16 {[%emt 0:00:00] White is better.} (13. Bxd5 $6 Bxd5 14. Rxd5 Be7 $11) 13... N5f6 {[%emt 0:30:55]} (13... Bd6 $16 {might work better.} 14. exd5+ Kf8) 14. e5 $18 {[%emt 0:00:00]} Be7 {[%emt 0:12:21] [#]} (14... Ne4 $142) 15. Bf4 $1 {[%emt 0:00:00]} (15. exf6 Nxf6 16. Re1 Bxf3 17. Qxf3 O-O $16) 15... Nd5 {[%emt 0:16:19]} (15... Nh5 $2 16. Bxf7+ Kf8 17. Bxh5 $18) 16. Rxd5 {[%emt 0:00:00]} O-O {[%emt 0:10:38]} 17. e6 {[%emt 0:00:00]} (17. Bg3 $142 {e6 would now be deadly.} Bxd5 18. Bxd5) 17... Qxf4 {[%emt 0:00:37]} 18. Rxd7 {[%emt 0:00:00]} Bxf3 {[%emt 0:00:22]} 19. exf7+ {[%emt 0:00:00]} (19. gxf3 Bd6 20. exf7+ (20. Rxf7 $2 Qxh2+ 21. Kf1 Qh1#) 20... Kh8 $15) (19. Qxf3 Qxc4 20. Rxe7 fxe6 $11) 19... Kh8 {[%emt 0:00:41]} 20. Qxf3 {[%emt 0:00:00]} ({Weaker is} 20. gxf3 Bd6 21. Kf1 (21. Bxa6 $2 {gets mated.} Qxh2+ 22. Kf1 Qh1#) 21... Qxh2 $15) ({Worse is} 20. Qxe7 Bxg2 21. Kxg2 Qg4+ 22. Kf1 (22. Kh1 Qf3+ 23. Kg1 Qg4+ 24. Kh1 Qf3+ 25. Kg1 Qg4+ 26. Kf1 Qxc4+ 27. Qe2 Qxe2+ 28. Kxe2 g6 $15) 22... Qxc4+ 23. Kg2 Qg4+ 24. Kh1 Qf3+ 25. Kg1 Qg4+ 26. Kf1 Qc4+ 27. Kg1 Qg4+ 28. Kf1 Qc4+ $11) 20... Qxf3 {[%emt 0:04:47]} 21. gxf3 {[%emt 0:00:00]} Bf6 {[%emt 0:00:01]} 22. Re1 {[%emt 0:00:00]} b5 {[%emt 0:02:12]} 23. axb5 {[%emt 0:00:00]} axb5 {[%emt 0:00:04]} 24. Bxb5 {[%emt 0:00:00]} Bxb2 $2 {[%emt 0:00:31]} (24... Rab8 {is tougher.} 25. Bc4 Bxb2) 25. Bc6 {[%emt 0:00:00] White is clearly winning.} Ra1 {[%emt 0:06:51] [#]} 26. Rxa1 {[%emt 0:00:00]} Bxa1 {[%emt 0:00:03] [#]} 27. Rd8 $3 {[%emt 0:00:00][%mdl 512] Black got outplayed after the opening.   Weighted Error Value: White=0.11 (very precise) /Black=0.73.  Mistake:       	White=1     	Black=4      Inaccurate:     	---       	Black=1      OK:         	White=4     	Black=5      Best:        	White=3     	Black=2      Strong:       	White=2     	---} 1-0